[Event "Titled Tuesday Blitz June 20 Late 2023"]
[White "Maiti, Milind"]
[Black "Slavin, Alexey"]
[WhiteFideId "2090767"]
[BlackFideId "24104388"]
[WhiteElo "2150"]
[BlackElo "2264"]
[Result "1-0"]
[Round "5"]
[TimeControl "180+2"]
[Date "2023.06.20"]
[WhiteClock "0:00:12"]
[BlackClock "0:00:03"]
[Board "119"]

1. d4 {[%clk 0:03:00]}  Nc6 {[%clk 0:02:59]} 2. e4 {[%clk 0:02:59]}  d6 {[%clk 0:02:58]} 3. Nf3 {[%clk 0:02:58]}  Nf6 {[%clk 0:02:58]} 4. Nc3 {[%clk 0:02:57]}  Bg4 {[%clk 0:02:58]} 5. Be2 {[%clk 0:02:57]}  e5 {[%clk 0:02:58]} 6. d5 {[%clk 0:02:52]}  Ne7 {[%clk 0:02:58]} 7. O-O {[%clk 0:02:51]}  Ng6 {[%clk 0:02:57]} 8. h3 {[%clk 0:02:32]}  Bd7 {[%clk 0:02:57]} 9. Re1 {[%clk 0:02:23]}  Be7 {[%clk 0:02:55]} 10. Bf1 {[%clk 0:02:22]}  O-O {[%clk 0:02:54]} 11. Be3 {[%clk 0:02:09]}  a6 {[%clk 0:02:53]} 12. a4 {[%clk 0:02:06]}  h6 {[%clk 0:02:53]} 13. Qd2 {[%clk 0:02:05]}  Nh7 {[%clk 0:02:52]} 14. Ne2 {[%clk 0:01:39]}  f5 {[%clk 0:02:49]} 15. exf5 {[%clk 0:01:38]}  Bxf5 {[%clk 0:02:48]} 16. Ng3 {[%clk 0:01:37]}  Bxh3 {[%clk 0:02:44]} 17. Bd3 {[%clk 0:01:29]}  Nf4 {[%clk 0:01:59]} 18. Bxh7+ {[%clk 0:01:05]}  Kxh7 {[%clk 0:01:59]} 19. gxh3 {[%clk 0:01:05]}  Nxh3+ {[%clk 0:01:58]} 20. Kg2 {[%clk 0:01:03]}  Nf4+ {[%clk 0:01:57]} 21. Bxf4 {[%clk 0:01:03]}  Rxf4 {[%clk 0:01:56]} 22. Qd3+ {[%clk 0:01:01]}  Kg8 {[%clk 0:01:52]} 23. Re4 {[%clk 0:01:00]}  Rf7 {[%clk 0:01:31]} 24. Rg4 {[%clk 0:00:50]}  Qd7 {[%clk 0:01:28]} 25. Qg6 {[%clk 0:00:37]}  Raf8 {[%clk 0:01:25]} 26. Nh5 {[%clk 0:00:36]}  Bg5 {[%clk 0:01:17]} 27. Rg3 {[%clk 0:00:29]}  e4 {[%clk 0:00:57]} 28. Qxe4 {[%clk 0:00:28]}  Re7 {[%clk 0:00:35]} 29. Qg4 {[%clk 0:00:25]}  Rf5 {[%clk 0:00:23]} 30. Nxg5 {[%clk 0:00:21]}  hxg5 {[%clk 0:00:22]} 31. Rh1 {[%clk 0:00:19]}  Ref7 {[%clk 0:00:22]} 32. Rf1 {[%clk 0:00:15]}  Qe7 {[%clk 0:00:21]} 33. Re3 {[%clk 0:00:14]}  Qf8 {[%clk 0:00:20]} 34. Qe2 {[%clk 0:00:11]}  Re5 {[%clk 0:00:06]} 35. Rxe5 {[%clk 0:00:10]}  dxe5 {[%clk 0:00:06]} 36. Qxe5 {[%clk 0:00:10]}  Re7 {[%clk 0:00:07]} 37. Qxg5 {[%clk 0:00:09]}  Qf7 {[%clk 0:00:06]} 38. Ng3 {[%clk 0:00:09]}  Rd7 {[%clk 0:00:03]} 39. Qf5 {[%clk 0:00:09]}  Qe7 {[%clk 0:00:03]} 40. Qe6+ {[%clk 0:00:08]}  Qxe6 {[%clk 0:00:03]} 41. dxe6 {[%clk 0:00:09]}  Re7 {[%clk 0:00:04]} 42. Re1 {[%clk 0:00:09]}  Kf8 {[%clk 0:00:04]} 43. Nf5 {[%clk 0:00:09]}  Re8 {[%clk 0:00:05]} 44. e7+ {[%clk 0:00:10]}  Kf7 {[%clk 0:00:05]} 45. Kf3 {[%clk 0:00:10]}  Kf6 {[%clk 0:00:06]} 46. Kf4 {[%clk 0:00:10]}  g6 {[%clk 0:00:04]} 47. Nd4 {[%clk 0:00:09]}  Rxe7 {[%clk 0:00:04]} 48. Rxe7 {[%clk 0:00:09]}  Kxe7 {[%clk 0:00:05]} 49. Kg5 {[%clk 0:00:10]}  c5 {[%clk 0:00:05]} 50. Nf3 {[%clk 0:00:10]}  Ke6 {[%clk 0:00:05]} 51. Kxg6 {[%clk 0:00:10]}  Kd5 {[%clk 0:00:05]} 52. Ng5 {[%clk 0:00:10]}  c4 {[%clk 0:00:04]} 53. f4 {[%clk 0:00:10]}  b5 {[%clk 0:00:04]} 54. axb5 {[%clk 0:00:09]}  axb5 {[%clk 0:00:05]} 55. f5 {[%clk 0:00:10]}  Kd4 {[%clk 0:00:05]} 56. f6 {[%clk 0:00:11]}  Ke3 {[%clk 0:00:05]} 57. f7 {[%clk 0:00:11]}  Kd2 {[%clk 0:00:06]} 58. f8=Q {[%clk 0:00:12]}  Kxc2 {[%clk 0:00:07]} 59. Qb4 {[%clk 0:00:12]}  Kd3 {[%clk 0:00:07]} 60. Qxb5 {[%clk 0:00:12]}  Kd4 {[%clk 0:00:03]} 61. Qb4 {[%clk 0:00:12]} 1-0


[Site "https://www.chess.com"]

[Event "Titled Tuesday Blitz June 20 Late 2023"]
[White "Omariev, Maksim"]
[Black "ElDivis"]
[WhiteFideId "4193423"]
[WhiteElo "2404"]
[BlackElo "2531"]
[Result "0-1"]
[Round "5"]
[TimeControl "180+2"]
[Date "2023.06.20"]
[WhiteClock "0:00:07"]
[BlackClock "0:00:12"]
[Board "120"]

1. g4 {[%clk 0:03:00]}  d5 {[%clk 0:02:57]} 2. Bg2 {[%clk 0:03:00]}  c6 {[%clk 0:02:55]} 3. h3 {[%clk 0:02:59]}  e5 {[%clk 0:02:53]} 4. d4 {[%clk 0:03:00]}  Nd7 {[%clk 0:02:45]} 5. dxe5 {[%clk 0:02:59]}  Nxe5 {[%clk 0:02:45]} 6. Bf4 {[%clk 0:02:59]}  Bd6 {[%clk 0:02:42]} 7. Qd4 {[%clk 0:02:50]}  Qf6 {[%clk 0:02:33]} 8. e3 {[%clk 0:02:09]}  g5 {[%clk 0:01:54]} 9. Bg3 {[%clk 0:02:03]}  Ne7 {[%clk 0:01:41]} 10. Nc3 {[%clk 0:01:52]}  h5 {[%clk 0:01:34]} 11. O-O-O {[%clk 0:00:28]}  hxg4 {[%clk 0:01:19]} 12. hxg4 {[%clk 0:00:27]}  Rxh1 {[%clk 0:01:20]} 13. Bxh1 {[%clk 0:00:28]}  N7g6 {[%clk 0:01:16]} 14. f3 {[%clk 0:00:14]}  Qh8 {[%clk 0:00:44]} 15. Bg2 {[%clk 0:00:13]}  Be6 {[%clk 0:00:39]} 16. e4 {[%clk 0:00:11]}  Rd8 {[%clk 0:00:23]} 17. exd5 {[%clk 0:00:08]}  cxd5 {[%clk 0:00:24]} 18. Qxa7 {[%clk 0:00:07]}  Kf8 {[%clk 0:00:19]} 19. Qxb7 {[%clk 0:00:07]}  Nc4 {[%clk 0:00:17]} 20. Qa6 {[%clk 0:00:05]}  Bxg3 {[%clk 0:00:15]} 21. Nge2 {[%clk 0:00:05]}  Be5 {[%clk 0:00:15]} 22. a4 {[%clk 0:00:03]}  Nxb2 {[%clk 0:00:15]} 23. Kxb2 {[%clk 0:00:02]}  Rb8+ {[%clk 0:00:15]} 24. Kc1 {[%clk 0:00:02]}  Nf4 {[%clk 0:00:13]} 25. Nxf4 {[%clk 0:00:01]}  Bxf4+ {[%clk 0:00:13]} 26. Rd2 {[%clk 0:00:01]}  Qxc3 {[%clk 0:00:13]} 27. Qd3 {[%clk 0:00:01]}  Qxd3 {[%clk 0:00:12]} 28. cxd3 {[%clk 0:00:01]}  Bxd2+ {[%clk 0:00:12]} 29. Kxd2 {[%clk 0:00:01]}  Rb2+ {[%clk 0:00:13]} 30. Kc3 {[%clk 0:00:02]}  Rxg2 {[%clk 0:00:14]} 31. Kb3 {[%clk 0:00:02]}  d4+ {[%clk 0:00:14]} 32. Kb4 {[%clk 0:00:02]}  Rb2+ {[%clk 0:00:14]} 33. Ka3 {[%clk 0:00:03]}  Rb7 {[%clk 0:00:13]} 34. a5 {[%clk 0:00:03]}  Ke7 {[%clk 0:00:13]} 35. Ka4 {[%clk 0:00:03]}  Kd6 {[%clk 0:00:13]} 36. a6 {[%clk 0:00:03]}  Ra7 {[%clk 0:00:14]} 37. Kb5 {[%clk 0:00:04]}  Bc8 {[%clk 0:00:13]} 38. Kc4 {[%clk 0:00:04]}  Rxa6 {[%clk 0:00:14]} 39. Kxd4 {[%clk 0:00:05]}  Ra4+ {[%clk 0:00:14]} 40. Ke3 {[%clk 0:00:05]}  Rf4 {[%clk 0:00:14]} 41. d4 {[%clk 0:00:05]}  Kd5 {[%clk 0:00:14]} 42. Kf2 {[%clk 0:00:04]}  Bxg4 {[%clk 0:00:14]} 43. Kg3 {[%clk 0:00:03]}  Bxf3 {[%clk 0:00:13]} 44. Kh3 {[%clk 0:00:04]}  Bg4+ {[%clk 0:00:13]} 45. Kg3 {[%clk 0:00:04]}  Bf5 {[%clk 0:00:13]} 46. Kh2 {[%clk 0:00:05]}  Ke4 {[%clk 0:00:13]} 47. Kg3 {[%clk 0:00:05]}  Ke3 {[%clk 0:00:13]} 48. Kg2 {[%clk 0:00:06]}  Rg4+ {[%clk 0:00:13]} 49. Kh3 {[%clk 0:00:06]}  Kf3 {[%clk 0:00:13]} 50. d5 {[%clk 0:00:07]}  Rh4# {[%clk 0:00:12]} 0-1


[Site "https://www.chess.com"]

[Event "Titled Tuesday Blitz June 20 Late 2023"]
[White "Zaitsev, Alexander"]
[Black "Avalos Parra, Joao"]
[WhiteFideId "4164490"]
[BlackFideId "3402541"]
[WhiteElo "2373"]
[BlackElo "2173"]
[Result "0-1"]
[Round "5"]
[TimeControl "180+2"]
[Date "2023.06.20"]
[WhiteClock "0:00:11"]
[BlackClock "0:00:16"]
[Board "123"]

1. e4 {[%clk 0:03:00]}  e5 {[%clk 0:02:58]} 2. Nc3 {[%clk 0:03:00]}  Nf6 {[%clk 0:02:58]} 3. Bc4 {[%clk 0:03:01]}  Nc6 {[%clk 0:02:56]} 4. d3 {[%clk 0:03:01]}  Bc5 {[%clk 0:02:38]} 5. f4 {[%clk 0:03:01]}  d6 {[%clk 0:02:10]} 6. Nf3 {[%clk 0:03:01]}  exf4 {[%clk 0:02:07]} 7. Bxf4 {[%clk 0:02:51]}  O-O {[%clk 0:02:07]} 8. Bg5 {[%clk 0:02:40]}  h6 {[%clk 0:02:02]} 9. Bh4 {[%clk 0:02:37]}  Bg4 {[%clk 0:02:02]} 10. Qd2 {[%clk 0:02:31]}  Bxf3 {[%clk 0:01:58]} 11. gxf3 {[%clk 0:02:29]}  Nxe4 {[%clk 0:01:56]} 12. Bxd8 {[%clk 0:01:04]}  Nxd2 {[%clk 0:01:55]} 13. Bxc7 {[%clk 0:01:04]}  Nxf3+ {[%clk 0:01:51]} 14. Kd1 {[%clk 0:00:59]}  Rfe8 {[%clk 0:01:22]} 15. Ne4 {[%clk 0:00:52]}  Rxe4 {[%clk 0:01:13]} 16. dxe4 {[%clk 0:00:52]}  Rc8 {[%clk 0:01:13]} 17. Rf1 {[%clk 0:00:45]}  Nfe5 {[%clk 0:01:13]} 18. Bxd6 {[%clk 0:00:33]}  Bxd6 {[%clk 0:01:10]} 19. Bd5 {[%clk 0:00:33]}  Rd8 {[%clk 0:00:59]} 20. Ke2 {[%clk 0:00:29]}  Nd4+ {[%clk 0:00:55]} 21. Kd2 {[%clk 0:00:29]}  Be7 {[%clk 0:00:50]} 22. c3 {[%clk 0:00:19]}  Bg5+ {[%clk 0:00:48]} 23. Kd1 {[%clk 0:00:20]}  Ndf3 {[%clk 0:00:46]} 24. Rf2 {[%clk 0:00:19]}  Kh7 {[%clk 0:00:36]} 25. Kc2 {[%clk 0:00:19]}  Nh4 {[%clk 0:00:29]} 26. Bxf7 {[%clk 0:00:15]}  Nxf7 {[%clk 0:00:29]} 27. Rxf7 {[%clk 0:00:15]}  Rd2+ {[%clk 0:00:30]} 28. Kb3 {[%clk 0:00:15]}  Rxh2 {[%clk 0:00:26]} 29. Rxb7 {[%clk 0:00:15]}  Nf3 {[%clk 0:00:26]} 30. Rd1 {[%clk 0:00:13]}  Nd2+ {[%clk 0:00:20]} 31. Kb4 {[%clk 0:00:13]}  Nxe4 {[%clk 0:00:20]} 32. b3 {[%clk 0:00:13]}  Rxa2 {[%clk 0:00:19]} 33. Rdd7 {[%clk 0:00:13]}  Bf6 {[%clk 0:00:18]} 34. c4 {[%clk 0:00:13]}  Bc3+ {[%clk 0:00:16]} 35. Kb5 {[%clk 0:00:12]}  Ra5+ {[%clk 0:00:16]} 36. Kc6 {[%clk 0:00:11]}  Rc5# {[%clk 0:00:16]} 0-1


[Site "https://www.chess.com"]

[Event "Titled Tuesday Blitz June 20 Late 2023"]
[White "Vaglio Munoz, Jaime"]
[Black "Haszon, David"]
[WhiteFideId "6500145"]
[BlackFideId "733610"]
[WhiteElo "2199"]
[BlackElo "2210"]
[Result "0-1"]
[Round "5"]
[TimeControl "180+2"]
[Date "2023.06.20"]
[WhiteClock "0:00:00"]
[BlackClock "0:00:18"]
[Board "127"]

1. Nf3 {[%clk 0:03:00]}  Nf6 {[%clk 0:02:57]} 2. c4 {[%clk 0:02:59]}  g6 {[%clk 0:02:57]} 3. b3 {[%clk 0:02:58]}  Bg7 {[%clk 0:02:57]} 4. Bb2 {[%clk 0:02:58]}  O-O {[%clk 0:02:58]} 5. g3 {[%clk 0:02:57]}  d5 {[%clk 0:02:54]} 6. cxd5 {[%clk 0:02:55]}  Qxd5 {[%clk 0:02:55]} 7. Nc3 {[%clk 0:02:53]}  Qh5 {[%clk 0:02:56]} 8. h3 {[%clk 0:02:49]}  Rd8 {[%clk 0:02:49]} 9. Bg2 {[%clk 0:02:48]}  Nc6 {[%clk 0:02:48]} 10. g4 {[%clk 0:02:47]}  Qa5 {[%clk 0:02:45]} 11. a3 {[%clk 0:02:39]}  Ne4 {[%clk 0:02:30]} 12. b4 {[%clk 0:01:59]}  Nxc3 {[%clk 0:02:28]} 13. Bxc3 {[%clk 0:01:54]}  Qb5 {[%clk 0:02:15]} 14. Bxg7 {[%clk 0:01:48]}  Kxg7 {[%clk 0:02:16]} 15. O-O {[%clk 0:01:47]}  Ne5 {[%clk 0:02:08]} 16. d3 {[%clk 0:01:40]}  Nxf3+ {[%clk 0:02:06]} 17. Bxf3 {[%clk 0:01:40]}  c6 {[%clk 0:02:06]} 18. Qc2 {[%clk 0:01:38]}  Qg5 {[%clk 0:01:55]} 19. Qc1 {[%clk 0:01:33]}  Qh4 {[%clk 0:01:50]} 20. Qf4 {[%clk 0:01:30]}  Be6 {[%clk 0:01:36]} 21. Rac1 {[%clk 0:01:27]}  a5 {[%clk 0:01:27]} 22. Kg2 {[%clk 0:01:20]}  axb4 {[%clk 0:01:24]} 23. axb4 {[%clk 0:01:21]}  h5 {[%clk 0:01:15]} 24. Qg3 {[%clk 0:01:03]}  Qxg3+ {[%clk 0:01:12]} 25. Kxg3 {[%clk 0:01:03]}  hxg4 {[%clk 0:01:09]} 26. hxg4 {[%clk 0:01:04]}  Rd4 {[%clk 0:01:02]} 27. Rb1 {[%clk 0:00:59]}  Ra4 {[%clk 0:00:59]} 28. b5 {[%clk 0:00:47]}  Bxg4 {[%clk 0:00:27]} 29. bxc6 {[%clk 0:00:46]}  Bxf3 {[%clk 0:00:22]} 30. Kxf3 {[%clk 0:00:47]}  bxc6 {[%clk 0:00:22]} 31. Rfc1 {[%clk 0:00:46]}  Rf4+ {[%clk 0:00:22]} 32. Ke3 {[%clk 0:00:45]}  Rf6 {[%clk 0:00:22]} 33. Rb6 {[%clk 0:00:36]}  Re6+ {[%clk 0:00:21]} 34. Kf3 {[%clk 0:00:35]}  Ra2 {[%clk 0:00:20]} 35. Re1 {[%clk 0:00:24]}  Rc2 {[%clk 0:00:18]} 36. e3 {[%clk 0:00:15]}  Rf6+ {[%clk 0:00:17]} 37. Ke4 {[%clk 0:00:15]}  Rcxf2 {[%clk 0:00:18]} 38. d4 {[%clk 0:00:15]}  Rc2 {[%clk 0:00:18]} 39. Rd1 {[%clk 0:00:10]}  Rc3 {[%clk 0:00:16]} 40. Rd2 {[%clk 0:00:06]}  Re6+ {[%clk 0:00:16]} 41. Kf4 {[%clk 0:00:06]}  Rcxe3 {[%clk 0:00:16]} 42. Rxc6 {[%clk 0:00:02]}  g5+ {[%clk 0:00:16]} 43. Kf5 {[%clk 0:00:01]}  Rxc6 {[%clk 0:00:16]} 44. Kxg5 {[%clk 0:00:01]}  Rg6+ {[%clk 0:00:16]} 45. Kf4 {[%clk 0:00:01]}  Ree6 {[%clk 0:00:16]} 46. d5 {[%clk 0:00:01]}  Rd6 {[%clk 0:00:17]} 47. Ke5 {[%clk 0:00:00]}  Rgf6 {[%clk 0:00:18]} 0-1


[Site "https://www.chess.com"]

[Event "Titled Tuesday Blitz June 20 Late 2023"]
[White "Blackburn, Jonathan L B"]
[Black "Sailer, Mike"]
[WhiteFideId "1801090"]
[BlackFideId "2012901"]
[WhiteElo "2178"]
[BlackElo "2109"]
[Result "1-0"]
[Round "5"]
[TimeControl "180+2"]
[Date "2023.06.20"]
[WhiteClock "0:00:18"]
[BlackClock "0:00:08"]
[Board "130"]

1. d4 {[%clk 0:03:00]}  d5 {[%clk 0:02:59]} 2. c4 {[%clk 0:03:00]}  c6 {[%clk 0:02:59]} 3. Nc3 {[%clk 0:03:00]}  Nf6 {[%clk 0:03:00]} 4. Nf3 {[%clk 0:03:00]}  a6 {[%clk 0:02:59]} 5. e3 {[%clk 0:02:50]}  b5 {[%clk 0:02:58]} 6. b3 {[%clk 0:02:35]}  Bg4 {[%clk 0:02:57]} 7. Be2 {[%clk 0:02:30]}  e6 {[%clk 0:02:57]} 8. h3 {[%clk 0:02:29]}  Bh5 {[%clk 0:02:57]} 9. O-O {[%clk 0:02:25]}  Bd6 {[%clk 0:02:56]} 10. Ne5 {[%clk 0:02:16]}  Bxe2 {[%clk 0:02:55]} 11. Qxe2 {[%clk 0:02:17]}  O-O {[%clk 0:02:51]} 12. a4 {[%clk 0:01:40]}  b4 {[%clk 0:02:50]} 13. Nb1 {[%clk 0:01:39]}  Bxe5 {[%clk 0:02:39]} 14. dxe5 {[%clk 0:01:38]}  Ne4 {[%clk 0:02:37]} 15. Bb2 {[%clk 0:01:35]}  Nd7 {[%clk 0:02:33]} 16. Nd2 {[%clk 0:01:26]}  Nxd2 {[%clk 0:02:32]} 17. Qxd2 {[%clk 0:01:26]}  a5 {[%clk 0:02:33]} 18. cxd5 {[%clk 0:01:21]}  cxd5 {[%clk 0:02:32]} 19. Bd4 {[%clk 0:01:18]}  Rc8 {[%clk 0:02:26]} 20. Rfc1 {[%clk 0:01:18]}  Qe7 {[%clk 0:02:25]} 21. e4 {[%clk 0:00:57]}  dxe4 {[%clk 0:02:19]} 22. Qe3 {[%clk 0:00:57]}  Qh4 {[%clk 0:02:09]} 23. Kh2 {[%clk 0:00:48]}  g5 {[%clk 0:01:57]} 24. g3 {[%clk 0:00:46]}  Qh5 {[%clk 0:01:52]} 25. Qxe4 {[%clk 0:00:45]}  Qg6 {[%clk 0:01:51]} 26. Qb7 {[%clk 0:00:36]}  Rxc1 {[%clk 0:01:47]} 27. Rxc1 {[%clk 0:00:37]}  Nb8 {[%clk 0:00:54]} 28. Rc8 {[%clk 0:00:36]}  Qd3 {[%clk 0:00:43]} 29. Rxf8+ {[%clk 0:00:26]}  Kxf8 {[%clk 0:00:43]} 30. Qxb8+ {[%clk 0:00:25]}  Kg7 {[%clk 0:00:44]} 31. Qd8 {[%clk 0:00:20]}  Qxb3 {[%clk 0:00:41]} 32. Qxg5+ {[%clk 0:00:20]}  Kh8 {[%clk 0:00:31]} 33. Be3 {[%clk 0:00:18]}  Qd3 {[%clk 0:00:20]} 34. Qf6+ {[%clk 0:00:18]}  Kg8 {[%clk 0:00:08]} 35. Bh6 {[%clk 0:00:18]} 1-0


[Site "https://www.chess.com"]

[Event "Titled Tuesday Blitz June 20 Late 2023"]
[White "Torres Dominguez, David"]
[Black "Goltsev, Dmitry"]
[WhiteFideId "2220857"]
[BlackFideId "24176710"]
[WhiteElo "1999"]
[BlackElo "2356"]
[Result "0-1"]
[Round "5"]
[TimeControl "180+2"]
[Date "2023.06.20"]
[WhiteClock "0:00:00"]
[BlackClock "0:01:19"]
[Board "131"]

1. e4 {[%clk 0:03:00]}  e6 {[%clk 0:02:59]} 2. d4 {[%clk 0:03:00]}  d5 {[%clk 0:03:00]} 3. exd5 {[%clk 0:03:00]}  exd5 {[%clk 0:03:00]} 4. Bd3 {[%clk 0:03:01]}  Nf6 {[%clk 0:03:00]} 5. Nf3 {[%clk 0:03:00]}  c5 {[%clk 0:03:00]} 6. O-O {[%clk 0:02:59]}  Be7 {[%clk 0:03:00]} 7. Re1 {[%clk 0:02:54]}  O-O {[%clk 0:03:00]} 8. dxc5 {[%clk 0:02:51]}  Bxc5 {[%clk 0:03:00]} 9. h3 {[%clk 0:02:48]}  Nc6 {[%clk 0:02:59]} 10. Nbd2 {[%clk 0:02:48]}  Qd6 {[%clk 0:02:58]} 11. Nb3 {[%clk 0:02:47]}  Bb6 {[%clk 0:02:59]} 12. Bg5 {[%clk 0:02:37]}  h6 {[%clk 0:02:58]} 13. Bh4 {[%clk 0:02:37]}  g5 {[%clk 0:02:58]} 14. Bg3 {[%clk 0:02:37]}  Qxg3 {[%clk 0:02:57]} 15. Kh1 {[%clk 0:01:58]}  Bxf2 {[%clk 0:02:54]} 16. Rf1 {[%clk 0:01:50]}  g4 {[%clk 0:02:15]} 17. Qd2 {[%clk 0:01:07]}  gxf3 {[%clk 0:02:05]} 18. Rxf2 {[%clk 0:01:06]}  Qg5 {[%clk 0:01:57]} 19. Rxf3 {[%clk 0:00:52]}  Qxd2 {[%clk 0:01:56]} 20. Nxd2 {[%clk 0:00:52]}  Ne8 {[%clk 0:01:48]} 21. Raf1 {[%clk 0:00:50]}  Ne5 {[%clk 0:01:40]} 22. Rg3+ {[%clk 0:00:47]}  Kh8 {[%clk 0:01:41]} 23. Be2 {[%clk 0:00:37]}  d4 {[%clk 0:01:35]} 24. Nb3 {[%clk 0:00:34]}  Rg8 {[%clk 0:01:33]} 25. Rxg8+ {[%clk 0:00:29]}  Kxg8 {[%clk 0:01:34]} 26. Nxd4 {[%clk 0:00:27]}  Nc7 {[%clk 0:01:34]} 27. Bh5 {[%clk 0:00:17]}  Kg7 {[%clk 0:01:30]} 28. Re1 {[%clk 0:00:16]}  Ng6 {[%clk 0:01:26]} 29. c4 {[%clk 0:00:10]}  Ne6 {[%clk 0:01:25]} 30. Nf5+ {[%clk 0:00:10]}  Kh7 {[%clk 0:01:25]} 31. Nd6 {[%clk 0:00:08]}  Nef4 {[%clk 0:01:19]} 32. Bf3 {[%clk 0:00:06]}  Be6 {[%clk 0:01:18]} 33. Bxb7 {[%clk 0:00:04]}  Rd8 {[%clk 0:01:18]} 34. c5 {[%clk 0:00:00]}  Nd3 {[%clk 0:01:19]} 0-1


[Site "https://www.chess.com"]

[Event "Titled Tuesday Blitz June 20 Late 2023"]
[White "Delorme, Axel"]
[Black "Shapiro, Daniel"]
[WhiteFideId "632023"]
[BlackFideId "2001780"]
[WhiteElo "2478"]
[BlackElo "2326"]
[Result "1-0"]
[Round "5"]
[TimeControl "180+2"]
[Date "2023.06.20"]
[WhiteClock "0:00:19"]
[BlackClock "0:00:08"]
[Board "132"]

1. e4 {[%clk 0:03:00]}  e5 {[%clk 0:02:59]} 2. Nf3 {[%clk 0:02:58]}  Nc6 {[%clk 0:03:00]} 3. Bb5 {[%clk 0:02:58]}  a6 {[%clk 0:02:59]} 4. Ba4 {[%clk 0:02:58]}  Nf6 {[%clk 0:02:59]} 5. O-O {[%clk 0:02:59]}  Be7 {[%clk 0:02:59]} 6. Re1 {[%clk 0:02:58]}  b5 {[%clk 0:02:58]} 7. Bb3 {[%clk 0:02:59]}  d6 {[%clk 0:02:58]} 8. c3 {[%clk 0:02:58]}  O-O {[%clk 0:02:57]} 9. h3 {[%clk 0:02:57]}  Na5 {[%clk 0:02:57]} 10. Bc2 {[%clk 0:02:56]}  c5 {[%clk 0:02:58]} 11. d4 {[%clk 0:02:55]}  Nd7 {[%clk 0:02:58]} 12. a4 {[%clk 0:02:53]}  Bb7 {[%clk 0:02:42]} 13. d5 {[%clk 0:02:52]}  c4 {[%clk 0:02:36]} 14. Na3 {[%clk 0:02:16]}  Nc5 {[%clk 0:02:04]} 15. axb5 {[%clk 0:02:13]}  axb5 {[%clk 0:02:04]} 16. Nxb5 {[%clk 0:02:10]}  Nab3 {[%clk 0:02:04]} 17. Rxa8 {[%clk 0:02:09]}  Qxa8 {[%clk 0:01:57]} 18. Na3 {[%clk 0:02:08]}  Ba6 {[%clk 0:01:42]} 19. Be3 {[%clk 0:01:57]}  Rb8 {[%clk 0:01:38]} 20. Nd2 {[%clk 0:01:44]}  Nxd2 {[%clk 0:01:34]} 21. Bxc5 {[%clk 0:01:41]}  dxc5 {[%clk 0:01:28]} 22. Qxd2 {[%clk 0:01:39]}  Rxb2 {[%clk 0:01:28]} 23. Ra1 {[%clk 0:01:30]}  Qd8 {[%clk 0:01:19]} 24. Qc1 {[%clk 0:01:26]}  Rb6 {[%clk 0:01:14]} 25. Bd1 {[%clk 0:01:20]}  g6 {[%clk 0:01:07]} 26. Be2 {[%clk 0:01:20]}  Bg5 {[%clk 0:00:54]} 27. Qc2 {[%clk 0:01:11]}  Rf6 {[%clk 0:00:35]} 28. Bxc4 {[%clk 0:01:04]}  Bc8 {[%clk 0:00:32]} 29. Bf1 {[%clk 0:00:58]}  Bf4 {[%clk 0:00:18]} 30. Nc4 {[%clk 0:00:54]}  g5 {[%clk 0:00:16]} 31. g3 {[%clk 0:00:42]}  Rg6 {[%clk 0:00:13]} 32. Bg2 {[%clk 0:00:35]}  Rh6 {[%clk 0:00:12]} 33. gxf4 {[%clk 0:00:32]}  gxf4 {[%clk 0:00:13]} 34. Qe2 {[%clk 0:00:26]}  Qh4 {[%clk 0:00:12]} 35. Ra8 {[%clk 0:00:21]}  Qd8 {[%clk 0:00:11]} 36. Nxe5 {[%clk 0:00:18]}  Rh5 {[%clk 0:00:11]} 37. Nc6 {[%clk 0:00:18]}  Qc7 {[%clk 0:00:10]} 38. Rxc8+ {[%clk 0:00:19]}  Qxc8 {[%clk 0:00:08]} 39. Ne7+ {[%clk 0:00:19]} 1-0


[Site "https://www.chess.com"]

[Event "Titled Tuesday Blitz June 20 Late 2023"]
[White "Jovic, Stanoje"]
[Black "Gerbelli Neto, Eduardo"]
[WhiteFideId "905020"]
[BlackFideId "2103281"]
[WhiteElo "2236"]
[BlackElo "2178"]
[Result "1-0"]
[Round "5"]
[TimeControl "180+2"]
[Date "2023.06.20"]
[WhiteClock "0:00:09"]
[BlackClock "0:00:05"]
[Board "135"]

1. c4 {[%clk 0:03:00]}  c5 {[%clk 0:02:53]} 2. g3 {[%clk 0:03:00]}  Nf6 {[%clk 0:02:50]} 3. Bg2 {[%clk 0:03:00]}  Nc6 {[%clk 0:02:50]} 4. Nc3 {[%clk 0:03:00]}  e6 {[%clk 0:02:44]} 5. Nf3 {[%clk 0:03:00]}  d5 {[%clk 0:02:44]} 6. cxd5 {[%clk 0:02:59]}  exd5 {[%clk 0:02:44]} 7. d4 {[%clk 0:02:57]}  cxd4 {[%clk 0:02:26]} 8. Nxd4 {[%clk 0:02:56]}  Bc5 {[%clk 0:02:24]} 9. Nb3 {[%clk 0:02:54]}  Bb4 {[%clk 0:02:23]} 10. O-O {[%clk 0:02:54]}  Bxc3 {[%clk 0:02:23]} 11. bxc3 {[%clk 0:02:54]}  O-O {[%clk 0:02:24]} 12. Bg5 {[%clk 0:02:43]}  Be6 {[%clk 0:02:24]} 13. Nc5 {[%clk 0:02:34]}  Qe7 {[%clk 0:02:17]} 14. Nxe6 {[%clk 0:02:24]}  fxe6 {[%clk 0:02:18]} 15. e4 {[%clk 0:02:15]}  dxe4 {[%clk 0:02:00]} 16. Bxe4 {[%clk 0:02:15]}  Qc5 {[%clk 0:01:47]} 17. Bxf6 {[%clk 0:02:00]}  Rxf6 {[%clk 0:01:36]} 18. Rc1 {[%clk 0:01:48]}  Raf8 {[%clk 0:01:35]} 19. Rc2 {[%clk 0:01:42]}  b6 {[%clk 0:01:25]} 20. Kg2 {[%clk 0:01:37]}  Ne5 {[%clk 0:01:09]} 21. Qd4 {[%clk 0:01:35]}  Qc7 {[%clk 0:01:04]} 22. Rd2 {[%clk 0:01:24]}  Nc4 {[%clk 0:01:00]} 23. Rd3 {[%clk 0:01:16]}  Ne5 {[%clk 0:00:50]} 24. Re3 {[%clk 0:01:06]}  Nc4 {[%clk 0:00:37]} 25. Rd3 {[%clk 0:00:50]}  Ne5 {[%clk 0:00:37]} 26. Rdd1 {[%clk 0:00:47]}  R6f7 {[%clk 0:00:24]} 27. f4 {[%clk 0:00:42]}  Ng4 {[%clk 0:00:21]} 28. Rfe1 {[%clk 0:00:38]}  Nf6 {[%clk 0:00:20]} 29. Bf3 {[%clk 0:00:37]}  Re7 {[%clk 0:00:20]} 30. Rd3 {[%clk 0:00:30]}  Rfe8 {[%clk 0:00:20]} 31. Rde3 {[%clk 0:00:30]}  Kf7 {[%clk 0:00:19]} 32. c4 {[%clk 0:00:30]}  Qc5 {[%clk 0:00:18]} 33. Qc3 {[%clk 0:00:26]}  h6 {[%clk 0:00:18]} 34. g4 {[%clk 0:00:26]}  g6 {[%clk 0:00:17]} 35. h4 {[%clk 0:00:25]}  Qd6 {[%clk 0:00:15]} 36. g5 {[%clk 0:00:24]}  hxg5 {[%clk 0:00:15]} 37. fxg5 {[%clk 0:00:23]}  Nh5 {[%clk 0:00:15]} 38. Bxh5 {[%clk 0:00:23]}  gxh5 {[%clk 0:00:15]} 39. Rf1+ {[%clk 0:00:23]}  Kg8 {[%clk 0:00:15]} 40. Ref3 {[%clk 0:00:20]}  e5 {[%clk 0:00:12]} 41. Rf6 {[%clk 0:00:19]}  Qd4 {[%clk 0:00:11]} 42. Qf3 {[%clk 0:00:18]}  Qg4+ {[%clk 0:00:11]} 43. Qxg4 {[%clk 0:00:18]}  hxg4 {[%clk 0:00:12]} 44. h5 {[%clk 0:00:18]}  e4 {[%clk 0:00:12]} 45. Re1 {[%clk 0:00:18]}  e3 {[%clk 0:00:12]} 46. Rf4 {[%clk 0:00:17]}  Re5 {[%clk 0:00:12]} 47. Rxg4 {[%clk 0:00:17]}  Re4 {[%clk 0:00:12]} 48. Rxe4 {[%clk 0:00:13]}  Rxe4 {[%clk 0:00:13]} 49. Kf3 {[%clk 0:00:14]}  Rxc4 {[%clk 0:00:13]} 50. Rxe3 {[%clk 0:00:14]}  Rc2 {[%clk 0:00:13]} 51. Re7 {[%clk 0:00:13]}  Rxa2 {[%clk 0:00:13]} 52. h6 {[%clk 0:00:13]}  Rh2 {[%clk 0:00:13]} 53. Kg4 {[%clk 0:00:13]}  a5 {[%clk 0:00:13]} 54. Kf5 {[%clk 0:00:13]}  Kf8 {[%clk 0:00:11]} 55. Rb7 {[%clk 0:00:12]}  Rb2 {[%clk 0:00:09]} 56. Kg6 {[%clk 0:00:11]}  a4 {[%clk 0:00:08]} 57. h7 {[%clk 0:00:11]}  Rh2 {[%clk 0:00:08]} 58. Rxb6 {[%clk 0:00:11]}  Ke7 {[%clk 0:00:08]} 59. Rb8 {[%clk 0:00:10]}  a3 {[%clk 0:00:05]} 60. h8=Q {[%clk 0:00:09]} 1-0


[Site "https://www.chess.com"]